Workbook

Sheet Home
F2: SOCIAL PERFORMANCE MANAGEMENT REPORTING TEMPLATE
D14: Click the Input Sheet that needs to be filled
D19: Instructions to be fill the template:
D20: 1. Fill the cells which are in green colour
D21: 2. No need to enter any data in the blue colour cells

Sheet Monthly input sheet
B4: SOCIAL PERFORMANCE MANAGEMENT: MONTHLY REPORT INPUT SHEET
AA6: List 1: Branches | AB6: List 2: Areas | AC6: List 3: Category of complaints
B7: Indicate the Period | C7: 2014-01-01 | E7: 2014-02-01 | G7: 2014-03-01 | I7: 2014-04-01 | K7: 2014-05-01 | M7: 2014-06-01 | O7: 2014-07-01 | Q7: 2014-08-01 | S7: 2014-09-01 | U7: 2014-10-01 | W7: 2014-11-01 | Y7: 2014-12-01 | AA7: AGOO | AC7: Staff attitude & Behaviour | AD7: List 4
AA8: ALICIA | AC8: Insurance - Life | AD8: Staff Attitude & Behavior
AA9: ANGELES | AC9: Insurance - Health | AD9: Salary & Benefits
B10: OPERATIONS | AA10: APARRI | AC10: Insurance - Crop | AD10: HR Policies
AA11: ARITAO | AC11: Insurance - Others | AD11: Operations Policies
B12: % of active borrowers: | AA12: BAGABAG | AC12: Loan application & renewal | AD12: Audit Policies
B13: Female | C13: 0.730433194 | E13: 0.72294906 | G13: 0.7350292612 | I13: 0.7424269582 | K13: 0.7424269582 | M13: 0.74 | O13: 0.73 | Q13: 0.74 | S13: 0.74 | U13: 0.75 | W13: 0.75 | Y13: 0.74 | AA13: BAGGAO | AC13: Loan approval or disapproval | AD13: Administrative Policies
B14: Male | C14: =1-C13 -> 0.269566806 | E14: =1-E13 -> 0.27705094 | G14: =1-G13 -> 0.2649707388 | I14: =1-I13 -> 0.2575730418 | K14: =1-K13 -> 0.2575730418 | M14: 0.26 | O14: 0.27 | Q14: 0.26 | S14: 0.26 | U14: 0.25 | W14: 0.25 | Y14: 0.26 | AA14: BALER | AC14: Loan release | AD14: Fraud
B15: Rural | C15: 0.84 | E15: 0.85 | G15: 0.8456 | I15: 0.84 | K15: 0.84 | M15: 0.83 | O15: 0.84 | Q15: 0.85 | S15: 0.85 | U15: 0.85 | W15: 0.85 | Y15: 0.85 | AA15: BAMBANG | AC15: Loan utilization check
B16: Urban | C16: =1-C15 -> 0.16 | E16: =1-E15 -> 0.15 | G16: =1-G15 -> 0.1544 | I16: =1-I15 -> 0.16 | K16: =1-K15 -> 0.16 | M16: 0.17 | O16: 0.16 | Q16: 0.15 | S16: 0.15 | U16: 0.15 | W16: 0.15 | Y16: 0.15 | AA16: CABAGAN | AC16: Collection of dues
AA17: CABANATUAN | AC17: Policies on delinquent accounts & corresponding penalties
B18: % of targeted minority borrowers | AA18: CABARROGUIS | AC18: Capital Build-Up
B19: Small Farmers | AA19: CABATUAN | AC19: Fraud
B20: Farmer | AA20: CABIAO
B21: Fisherfolk | AA21: CALASIAO
B22: Indigenous People | G22: 0.01 | AA22: CAMILING
B23: Displaced workers | AA23: CAUAYAN
B24: Persons with Disability | AA24: CONCEPCION
B25: Urban Poor | AA25: CUYAPO
AA26: DICADI
B27: % of clients without access to formal financial services before joining ASKI | AA27: ECHAGUE
AA28: GABALDON
B29: % of poor incoming / new clients (various poverty lines: <1.25$ a day, <2 $ a day, <5 $ a day) | AA29: GAPAN
B30: % of clients living under the 1.25$ a day | C30: 0.0837 | E30: 0.085 | G30: 0.0814 | I30: 0.0742 | K30: 0.0731 | O30: 0.0879 | Q30: 0.0886 | S30: 0.0921 | U30: 0.0772 | W30: 0.0754 | Y30: 0.0656 | AA30: GATTARAN
B31: % of clients living under the 2.5$ a day | C31: 0.3301 | E31: 0.3272 | G31: 0.3196 | I31: 0.3013 | K31: 0.3015 | O31: 0.3364 | Q31: 0.3333 | S31: 0.3409 | U31: 0.2984 | W31: 0.2969 | Y31: 0.2711 | AA31: GUIMBA
B32: % of clients living under the 5$ a day | C32: 0.6581 | E32: 0.6504 | G32: 0.6492 | I32: 0.6198 | K32: 0.6305 | O32: 0.6624 | Q32: 0.6593 | S32: 0.6652 | U32: 0.6185 | W32: 0.6205 | Y32: 0.5903 | AA32: ILAGAN
AA33: JONES
AA34: LAGAWE
B35: Average Loan Size per borrower (Exposure to ASKI loans) in Pesos | C35: 15903.86035 | E35: 15789.20696 | G35: 15350.49355 | I35: 14602.53283 | K35: 14590.77943 | O35: 14675.88 | Q35: 14548.29 | S35: 14098.36 | AA35: LOURDES
AA36: MADDELA
AA37: MALLIG
B38: Client retention rate (borrowers only): Overall | C38: =C41/(C40+C42) -> 0.9654803901 | E38: =E41/(E40+E42) -> 0.9717324815 | G38: =G41/(G40+G42) -> 0.9690292339 | I38: =I41/(I40+I42) -> 0.9491626349 | K38: =K41/(K40+K42) -> 0.9587478154 | M38: =M41/(M40+M42) -> 0.9954854028 | O38: =O41/(O40+O42) -> 0.9860495437 | Q38: =Q41/(Q40+Q42) -> 0.9829549102 | S38: =S41/(S40+S42) -> 0.990404937 | U38: =U41/(U40+U42) -> 0.9694432555 | W38: =W41/(W40+W42) -> 0.9836017261 | Y38: =Y41/(Y40+Y42) -> 0.9969052306 | AA38: MANGALDAN
AA39: MARIA
B40: Number of active borrowers as at beginning of period | C40: 94145 | E40: =C41 -> 93053 | G40: =E41 -> 93091 | I40: =G41 -> 92614 | K40: =I41 -> 89264 | M40: =K41 -> 87224 | O40: =M41 -> 89304 | Q40: =O41 -> 90756 | S40: =Q41 -> 91865 | U40: =S41 -> 93724 | W40: =U41 -> 92862 | Y40: =W41 -> 93452 | AA40: MEXICO
B41: Number of active borrowers as at end of period | C41: 93053 | E41: 93091 | G41: 92614 | I41: 89264 | K41: 87224 | M41: 89304 | O41: 90756 | Q41: 91865 | S41: 93724 | U41: 92862 | W41: 93452 | Y41: 94705 | AA41: MUÑOZ
B42: Number of new borrowers during the period | C42: 2235 | E42: 2746 | G42: 2483 | I42: 1431 | K42: 1713 | M42: 2485 | O42: 2736 | Q42: 2702 | S42: 2767 | U42: 2065 | W42: 2148 | Y42: 1547 | AA42: PALAYAN
AA43: PANIQUI
AA44: PLARIDEL
B45: AKP retention rate | C45: =C47/(C46+C48) ->  | E45: =E47/(E46+E48) ->  | G45: =G47/(G46+G48) ->  | I45: =I47/(I46+I48) ->  | K45: =K47/(K46+K48) ->  | M45: =M47/(M46+M48) ->  | O45: =O47/(O46+O48) -> 0.9535044923 | Q45: =Q47/(Q46+Q48) -> 0.9692572289 | S45: =S47/(S46+S48) -> 0.984861048 | U45: =U47/(U46+U48) -> 0 | W45: =W47/(W46+W48) ->  | Y45: =Y47/(Y46+Y48) ->  | AA45: QUEZON
B46: Number of active borrowers as at beginning of period - AKP | E46: =C47 -> 0 | G46: =E47 -> 0 | I46: =G47 -> 0 | K46: =I47 -> 0 | M46: =K47 -> 0 | O46: =M47 -> 36214 | Q46: =O47 -> 35765 | S46: =Q47 -> 36068 | U46: =S47 -> 36821 | W46: =U47 -> 0 | Y46: =W47 -> 0 | AA46: RIZAL
B47: Number of active borrowers as at end of period - AKP | M47: 36214 | O47: 35765 | Q47: 36068 | S47: 36821 | AA47: ROSALES
B48: Number of new borrowers during the period - AKP | O48: 1295 | Q48: 1447 | S48: 1319 | AA48: ROXAS
AA49: SAN FERNANDO
B50: AMP retention rate | C50: =C52/(C51+C53) ->  | E50: =E52/(E51+E53) ->  | G50: =G52/(G51+G53) ->  | I50: =I52/(I51+I53) ->  | K50: =K52/(K51+K53) ->  | M50: =M52/(M51+M53) ->  | O50: =O52/(O51+O53) -> 1.035578289 | Q50: =Q52/(Q51+Q53) -> 1.002950014 | S50: =S52/(S51+S53) -> 0.9861420575 | U50: =U52/(U51+U53) -> 0 | W50: =W52/(W51+W53) ->  | Y50: =Y52/(Y51+Y53) ->  | AA50: SAN JOSE
B51: Number of active borrowers as at beginning of period - AMP | E51: =C52 -> 0 | G51: =E52 -> 0 | I51: =G52 -> 0 | K51: =I52 -> 0 | M51: =K52 -> 0 | O51: =M52 -> 17330 | Q51: =O52 -> 18221 | S51: =Q52 -> 18359 | U51: =S52 -> 18146 | W51: =U52 -> 0 | Y51: =W52 -> 0 | AA51: SAN MATEO
B52: Number of active borrowers as at end of period - AMP | M52: 17330 | O52: 18221 | Q52: 18359 | S52: 18146 | AA52: SAN MIGUEL
B53: Number of new borrowers during the period - AMP | O53: 265 | Q53: 84 | S53: 42 | AA53: SAN RAFAEL
AA54: SANTIAGO
B55: ILP retention rate | C55: =C57/(C56+C58) ->  | E55: =E57/(E56+E58) ->  | G55: =G57/(G56+G58) ->  | I55: =I57/(I56+I58) ->  | K55: =K57/(K56+K58) ->  | M55: =M57/(M56+M58) ->  | O55: =O57/(O56+O58) -> 0.99319414 | Q55: =Q57/(Q56+Q58) -> 0.983816588 | S55: =S57/(S56+S58) -> 0.9977196549 | U55: =U57/(U56+U58) -> 0 | W55: =W57/(W56+W58) ->  | Y55: =Y57/(Y56+Y58) ->  | AA55: SOLANO
B56: Number of active borrowers as at beginning of period - ILP | E56: =C57 -> 0 | G56: =E57 -> 0 | I56: =G57 -> 0 | K56: =I57 -> 0 | M56: =K57 -> 0 | O56: =M57 -> 33539 | Q56: =O57 -> 34440 | S56: =Q57 -> 35016 | U56: =S57 -> 36315 | W56: =U57 -> 0 | Y56: =W57 -> 0 | AA56: STA. IGNACIA
B57: Number of active borrowers as at end of period - ILP | M57: 33539 | O57: 34440 | Q57: 35016 | S57: 36315 | AA57: STA. MARIA
B58: Number of new borrowers during the period - ILP | O58: 1137 | Q58: 1152 | S58: 1382 | AA58: STA. ROSA
AA59: TALAVERA
AA60: TARLAC
B61: PEOPLE / EMPLOYEES | AA61: TAYUG
AA62: TUGUEGARAO NORTH
B63: % of staff complaints resolved | C63: =C66/C65 -> 1 | E63: =E66/E65 ->  | G63: =G66/G65 -> 0.5 | I63: =I66/I65 -> 1 | K63: =K66/K65 -> 1 | M63: =M66/M65 -> 0.2 | O63: =O66/O65 -> 0.8 | Q63: =Q66/Q65 -> 1 | S63: =S66/S65 -> 0.8571428571 | U63: =U66/U65 -> 1 | W63: =W66/W65 -> 1 | Y63: =Y66/Y65 -> 0.75 | AA63: TUGUEGARAO SOUTH
AA64: TUMAUINI
B65: No. of staff complaints received | C65: 4 | E65: 0 | G65: 2 | I65: 2 | K65: 2 | M65: 5 | O65: 5 | Q65: 2 | S65: 7 | U65: 9 | W65: 6 | Y65: 8 | AA65: URDANETA
B66: No. of staff complaints resolved | C66: 4 | E66: 0 | G66: 1 | I66: 2 | K66: 2 | M66: 1 | O66: 4 | Q66: 2 | S66: 6 | U66: 9 | W66: 6 | Y66: 6 | AA66: ZARAGOZA
B68: Staff retention rate | C68: =(C71-C72)/C70 -> 0.9741735537 | E68: =(E71-E72)/E70 -> 0.9707419018 | G68: =(G71-G72)/G70 -> 0.9673684211 | I68: =(I71-I72)/I70 -> 0.9756871036 | K68: =(K71-K72)/K70 -> 0.9787234043 | M68: =(M71-M72)/M70 -> 0.9785714286 | O68: =(O71-O72)/O70 -> 0.9771598808 | Q68: =(Q71-Q72)/Q70 -> 0.9805068226 | S68: =(S71-S72)/S70 -> 0.9689922481 | U68: =(U71-U72)/U70 -> 0.978388998 | W68: =(W71-W72)/W70 -> 0.9775171065 | Y68: =(Y71-Y72)/Y70 -> 0.9883608147
B70: Number of employees as at beginning of period | C70: 968 | E70: =C71 -> 957 | G70: =E71 -> 950 | I70: =G71 -> 946 | K70: =I71 -> 940 | M70: =K71 -> 980 | O70: =M71 -> 1007 | Q70: =O71 -> 1026 | S70: =Q71 -> 1032 | U70: =S71 -> 1018 | W70: =U71 -> 1023 | Y70: =W71 -> 1031
B71: Number of employees as at end of period | C71: 957 | E71: 950 | G71: 946 | I71: 940 | K71: 980 | M71: 1007 | O71: 1026 | Q71: 1032 | S71: 1018 | U71: 1023 | W71: 1031 | Y71: 1020
B72: Number of new employees during the period | C72: 14 | E72: 21 | G72: 27 | I72: 17 | K72: 60 | M72: 48 | O72: 42 | Q72: 26 | S72: 18 | U72: 27 | W72: 31 | Y72: 1
B74: PROCESS
B76: % of clients complaints resolved (Komento Mo – text) | C76: =C79/C78 -> 0.7272727273 | E76: =E79/E78 -> 1 | G76: =G79/G78 -> 1 | I76: =I79/I78 -> 0.8333333333 | K76: =K79/K78 -> 0.8823529412 | M76: =M79/M78 -> 0.9375 | O76: =O79/O78 -> 0.8235294118 | Q76: =Q79/Q78 -> 1 | S76: =S79/S78 -> 0.92 | U76: =U79/U78 -> 0.8965517241 | W76: =W79/W78 -> 0.9642857143 | Y76: =Y79/Y78 -> 0.72
B78: No. of client complaints received | C78: 22 | E78: 6 | G78: 5 | I78: 6 | K78: 17 | M78: 16 | O78: 17 | Q78: 16 | S78: 25 | U78: 29 | W78: 28 | Y78: 25
B79: No. of client complaints resolved | C79: 16 | E79: 6 | G79: 5 | I79: 5 | K79: 15 | M79: 15 | O79: 14 | Q79: 16 | S79: 23 | U79: 26 | W79: 27 | Y79: 18
B81: Top 3 sub-categories of complaints received | C81: Sub-category 1 | E81: Sub-category 1 | G81: Sub-category 1 | I81: Sub-category 1 | K81: Sub-category 1 | M81: Sub-category 1 | O81: Sub-category 1 | Q81: Sub-category 1 | S81: Sub-category 1 | U81: Sub-category 1 | W81: Sub-category 1 | Y81: Sub-category 1
C82: Staff attitude & Behaviour | E82: Staff attitude & Behaviour | G82: Staff attitude & Behaviour | I82: Staff attitude & Behaviour | K82: Capital Build-Up | M82: Loan application & renewal | O82: Loan release | Q82: Insurance - Life | S82: Loan application & renewal | U82: Capital Build-Up | W82: Capital Build-Up | Y82: Loan release
C84: Sub-category 2 | E84: Sub-category 2 | G84: Sub-category 2 | I84: Sub-category 2 | K84: Sub-category 2 | M84: Sub-category 2 | O84: Sub-category 2 | Q84: Sub-category 2 | S84: Sub-category 2 | U84: Sub-category 2 | W84: Sub-category 2 | Y84: Sub-category 2
C85: Collection of dues | E85: Loan release | G85: Insurance - Crop | I85: Insurance - Life | K85: Loan application & renewal | M85: Staff attitude & Behaviour | O85: Loan application & renewal | Q85: Capital Build-Up | S85: Capital Build-Up | U85: Loan application & renewal | W85: Collection of dues | Y85: Capital Build-Up
C87: Sub-category 3 | E87: Sub-category 3 | G87: Sub-category 3 | I87: Sub-category 3 | K87: Sub-category 3 | M87: Sub-category 3 | O87: Sub-category 3 | Q87: Sub-category 3 | S87: Sub-category 3 | U87: Sub-category 3 | W87: Sub-category 3 | Y87: Sub-category 3
C88: Insurance - Life | E88: Capital Build-Up | G88: Loan approval or disapproval | I88: Loan application & renewal | K88: Insurance - Crop | M88: Loan release | O88: Insurance - Life | Q88: Collection of dues | S88: Staff attitude & Behaviour | U88: Loan release | W88: Loan release | Y88: Collection of dues
B90: Top 3 Branches with highest complaints | C90: Branch 1 | E90: Branch 1 | G90: Branch 1 | I90: Branch 1 | K90: Branch 1 | M90: Branch 1 | O90: Branch 1 | Q90: Branch 1 | S90: Branch 1 | U90: Branch 1 | W90: Branch 1 | Y90: Branch 1
C91: GUIMBA | E91: GUIMBA | O91: CALASIAO | Q91: PALAYAN | S91: CABIAO | U91: MANGALDAN | W91: CALASIAO | Y91: CAMILING
C93: Branch 2 | E93: Branch 2 | G93: Branch 2 | I93: Branch 2 | K93: Branch 2 | M93: Branch 2 | O93: Branch 2 | Q93: Branch 2 | S93: Branch 2 | U93: Branch 2 | W93: Branch 2 | Y93: Branch 2
C94: CALASIAO | E94: ROXAS | O94: CABARROGUIS | Q94: DICADI | S94: CALASIAO | U94: SANTIAGO | W94: ROSALES | Y94: BALER
C96: Branch 3 | E96: Branch 3 | G96: Branch 3 | I96: Branch 3 | K96: Branch 3 | M96: Branch 3 | O96: Branch 3 | Q96: Branch 3 | S96: Branch 3 | U96: Branch 3 | W96: Branch 3 | Y96: Branch 3
C97: PALAYAN | E97: SAN RAFAEL | O97: MARIA | S97: GUIMBA | U97: MEXICO | Y97: GUIMBA
B99: Top 3 areas with highest complaints | C99: Area 1 | E99: Area 1 | G99: Area 1 | I99: Area 1 | K99: Area 1 | M99: Area 1 | O99: Area 1 | Q99: Area 1 | S99: Area 1 | U99: Area 1 | W99: Area 1 | Y99: Area 1
C100: Area 3 | E100: Area 3 | G100: Area 3 | I100: Area 3 | K100: Tarlac Area | M100: Pangasinan Area | O100: Isabela South | Q100: Pangasinan | S100: Pangasinan | U100: Pangasinan | W100: Pangasinan | Y100: Tarlac
C102: Area 2 | E102: Area 2 | G102: Area 2 | I102: Area 2 | K102: Area 2 | M102: Area 2 | O102: Area 2 | Q102: Area 2 | S102: Area 2 | U102: Area 2 | W102: Area 2 | Y102: Area 2
C103: Area 1 | E103: Area 1 | G103: Area 1 | I103: Area 4 | K103: Nueva Ecija North Area | M103: Pampanga Area | O103: Pangasinan | Q103: Isabela North, Isabela South, NE South, NE North, tarlac | S103: Nueva Ecija South | U103: Bulacan | W103: Pampanga | Y103: Aurora
C105: Area 3 | E105: Area 3 | G105: Area 3 | I105: Area 3 | K105: Area 3 | M105: Area 3 | O105: Area 3 | Q105: Area 3 | S105: Area 3 | U105: Area 3 | W105: Area 3 | Y105: Area 3
C106: Area 2 | E106: Area 4 | G106: Area 2 | I106: Area 1 | K106: Bulacan Area | M106: Nueva Vizcaya and Ifuagao Area | O106: Aurora | Q106: Bulacan, Cagayan, Nueva Vizcaya Ifugao | S106: Nueva Ecija North | U106: Isabela South | Y106: Nueva Ecija North
B108: SP audit report

Sheet Quarterly input sheet
C4: SOCIAL PERFORMANCE MANAGEMENT: QUARTERLY REPORT INPUT SHEET
C7: Indicate the Period | D7: Jan - March 2021 | F7: April - June 2021 | H7: July - September 2021 | J7: October - December 2014
D8: Q1 | F8: Q2 | H8: Q3 | J8: Q4
C10: OPERATIONS
C12: % of active borrowers:
C13: Female | D13: 0.7359 | F13: 0.7356 | H13: 0.7352 | J13: 0.7349
C14: Male | D14: 0.2641 | F14: 0.2644 | H14: 0.2648 | J14: 0.2651
C15: Rural | D15: 0.8684 | F15: 0.8692 | H15: 0.8707 | J15: 0.8717
C16: Urban | D16: 0.1316 | F16: 0.1308 | H16: 0.1293 | J16: 0.1283
C18: % of targeted minority borrowers | D18: =SUM(D19:D25) -> 0.5271 | F18: =SUM(F19:F25) -> 0.5225 | H18: =SUM(H19:H25) -> 0.5161 | J18: =SUM(J19:J25) -> 0.5134
C19: Small Farmers | D19: 0.1849 | F19: 0.1786 | H19: 0.1739 | J19: 0.1717
C20: Farmer | D20: 0.1342 | F20: 0.1364 | H20: 0.134 | J20: 0.1335
C21: Fisherfolk | D21: 0.0058 | F21: 0.0052 | H21: 0.0048 | J21: 0.0047
C22: Indigenous People | D22: 0.0185 | F22: 0.0178 | H22: 0.0175 | J22: 0.0174
C23: Displaced workers | D23: 0.1086 | F23: 0.1078 | H23: 0.1079 | J23: 0.1081
C24: Persons with Disability | D24: 0.0003 | F24: 0.0004 | H24: 0.0004 | J24: 0.0004
C25: Urban Poor | D25: 0.0748 | F25: 0.0763 | H25: 0.0776 | J25: 0.0776
C27: % of clients without access to formal financial services before joining ASKI | D27: Loan Application | F27: Loan Application | H27: Loan Application | J27: Loan Application
C29: % of poor incoming / new clients (various poverty lines: <1.25$ a day, <2 $ a day, <5 $ a day)
C30: % of clients living under the 1.25$ a day | D30: 0.0412 | F30: 0.0325 | H30: 0.0326 | J30: 0.0293
C31: % of clients living under the 2.5$ a day | D31: 0.1984 | F31: 0.1744 | H31: 0.1771 | J31: 0.1667
C32: % of clients living under the 5$ a day | D32: 0.5135 | F32: 0.4862 | H32: 0.4964 | J32: 0.4862
C35: Average Loan Size per client (Exposure to ASKI loans) | D35: 21918.42 | F35: 21717.65 | H35: 21667.18 | J35: 21733.07
C38: Client retention rate (borrowers only): Overall | D38: 0.8042 | F38: 0.7962 | H38: 0.85 | J38: 0.82
C40: Number of active borrowers as at beginning of period | D40: 104949 | F40: 106265 | H40: 105622 | J40: 103396
C41: Number of active borrowers as at end of period | D41: 94742 | F41: 97213 | H41: 100564 | J41: 100848
C42: Number of new borrowers during the period | D42: 2032 | F42: 2068 | H42: 1758 | J42: 19084
C45: AKP retention rate | D45: 0.8607 | F45: 0.8571 | H45: 0.8784 | J45: 0.8676
C46: Number of active borrowers as at beginning of period - AKP | D46: 20882 | F46: 20778 | H46: 20348 | J46: 19885
C47: Number of active borrowers as at end of period - AKP | D47: 18965 | F47: 19016 | H47: 18974 | J47: 18732
C48: Number of new borrowers during the period - AKP | D48: 240 | F48: 210 | H48: 138 | J48: 1706
C50: AMP retention rate | D50: 0.6788 | F50: 0.6958 | H50: 0.9009 | J50: 0.7303
C51: Number of active borrowers as at beginning of period - AMP | D51: 16672 | F51: 16474 | H51: 16989 | J51: 16307
C52: Number of active borrowers as at end of period - AMP | D52: 12177 | F52: 12212 | H52: 12363 | J52: 12356
C53: Number of new borrowers during the period - AMP | D53: 23 | F53: 154 | H53: 47 | J53: 612
C55: ILP retention rate | D55: 0.8029 | F55: 0.8127 | H55: 0.8423 | J55: 0.8407
C56: Number of active borrowers as at beginning of period - ILP | D56: 61059 | F56: 60254 | H56: 59818 | J56: 59148
C57: Number of active borrowers as at end of period - ILP | D57: 56560 | F57: 58895 | H57: 62031 | J57: 62774
C58: Number of new borrowers during the period - ILP | D58: 1622 | F58: 1551 | H58: 1476 | J58: 15522
C60: PEOPLE / EMPLOYEES
C62: % of staff complaints resolved | D62: 1 | F62: 1 | H62: 1 | J62: 1
C64: No. of staff complaints received | D64: 3 | F64: 7 | H64: 2 | J64: 2
C65: No. of staff complaints resolved | D65: 3 | F65: 5 | H65: 2 | J65: 2
C67: Top 3 sub-categories of staff complaints received | D67: Sub-category 1
D68: HR Policies | H68: HR Policies
D69: Last Pay and Clearance Processing | F69: Salary & Benefits | H69: Last Pay and Clearance Processing | J69: Salary & Benefits
D70: Other Category
D72: Sub-category 2
J73: Operations Policies
F74: Last Pay and Clearance Processing
D76: Sub-category 3
F77: Administrative Policies | J77: Staff Attitude & Behavior
F78: Other Category
C81: Staff retention rate | D81: 0.9261 | F81: 0.9139 | H81: 0.9481 | J81: 0.8886
C83: Number of employees as at beginning of period | D83: 812 | F83: 801 | H83: 751 | J83: 781
C84: Number of employees as at end of period | D84: 763 | F84: 756 | H84: 754 | J84: 745
C85: Number of new employees during the period | D85: 10 | F85: 24 | H85: 21 | J85: 48
C87: Staff Turnover Rate | D87: 0.1456 | F87: 0.1593 | H87: 0.1368 | J87: 0.1549
C89: Number of staff resigned | D89: 28 | F89: 54 | H89: 27 | J89: 118
C90: Number of employees at the beginning of the period | D90: 812 | F90: 801 | H90: 751 | J90: =J83 -> 781
C91: Number of employees at the end of the period | D91: 763 | F91: 756 | H91: 754 | J91: =J84 -> 745
C93: Turnover Rate: Permanent Staff | D93: 0.0876 | F93: 0.1156 | H93: 0.1249 | J93: 0.1431
C94: Turnover Rate: Non-permanent Staff | D94: 0.058 | F94: 0.0437 | H94: 0.0119 | J94: 0.0118
C96: Top 3 reasons for staff exits | D96: Reason 1 | F96: Reason 1 | H96: Reason 1 | J96: Reason 1
D97: Other Job Opportunity | F97: Other Job Opportunity | H97: Other Job Opportunity | J97: Personal Matters
D99: Reason 2 | F99: Reason 2 | H99: Reason 2 | J99: Reason 2
D100: Family / Personal matters | F100: Family / Personal Matters | H100: Family / Personal Matters | J100: Other Job Opportunity
D102: Reason 3 | F102: Reason 3 | H102: Reason 3 | J102: Reason 3
D103: Transfer to other BU | F103: Put up Business | H103: Health Conditions | J103: Working Abroad
C105: Average number of days of staff training | D105: 2 | F105: 1 | H105: 1.5 | J105: 1
C108: PROCESS
C110: % of clients complaints resolved (Komento Mo – text) | D110: 1 | F110: =F113/F112 -> 0.9285714286 | H110: 1 | J110: =J113/J112 -> 0.8333333333
C112: No. of client complaints received | D112: 6 | F112: 14 | H112: 17 | J112: 6
C113: No. of client complaints resolved | D113: 6 | F113: 13 | H113: 17 | J113: 5
C115: Top 3 sub-categories of complaints received | D115: Sub-category 1 | F115: Sub-category 1 | H115: Sub-category 1 | J115: Sub-category 1
D116: Loan release | F116: Insurance - Life | H116: Insurance - Life | J116: Staff attitude & Behaviour
J117: Loan release
J118: Other Category
D120: Sub-category 2 | F120: Sub-category 2 | H120: Sub-category 2 | J120: Sub-category 2
D121: Insurance - Life | F121: Loan release | H121: Loan release
D123: Sub-category 3 | F123: Sub-category 3 | H123: Sub-category 3 | J123: Sub-category 3
D124: Staff attitude & Behaviour | F124: Collection of dues | H124: Collection of dues
F125: Staff attitude & Behaviour | H125: Staff attitude & Behaviour
C127: Top 3 Branches with highest complaints | D127: Branch 1 | F127: Branch 1 | H127: Branch 1 | J127: Branch 1
D128: SAN MATEO | F128: PLARIDEL | H128: PANIQUI | J128: GABALDON
H129: BALIUAG, ECHAGUE, ALICIA, CABATUAN, CONCEPCION, SAN MIGUEL, TUGUEGARAO SOUTH, STA. MARIA, GENERAL TINIO | J129: ALLACAPAN, GUIMBA, MANGALDAN
D131: Branch 2 | F131: Branch 2 | H131: Branch 2 | J131: Branch 2
D132: PANIQUI | F132: CABATUAN
D133: Arayat | F133: TUMAUINI, PORAC, MARIA, LASAM
D135: Branch 3 | F135: Branch 3 | H135: Branch 3 | J135: Branch 3
C138: Top 3 areas with highest complaints | D138: Area 1 | F138: Area 1 | H138: Area 1 | J138: Area 1
D139: ISABELA CENTRAL | F139: BULACAN, NE NORTH | H139: ISABELA CENTRAL, BULACAN | J139: CAGAYAN 2, NE NORTH, NE NORTHEAST, PANGASINAN
D141: Area 2 | F141: Area 2 | H141: Area 2 | J141: Area 2
D142: PAMPANGA, TARLAC | F142: ISABELA CENTRAL, PAMPANGA, ISABELA NORTH, CAGAYAN 2 | H142: PAMPANGA, TARLAC, CAGAYAN 1, ISABELA SOUTH/QUIRINO, NE SOUTH | J142: n/a
D144: Area 3 | F144: Area 3 | H144: Area 3 | J144: Area 3
D145: n/a | F145: n/a | H145: n/a | J145: n/a
C147: SP audit report | D147: n/a | F147: n/a | H147: n/a | J147: n/a
C149: FINANCE
C151: Return on Assets | D151: -0.0735 | F151: -0.096 | H151: -0.0993 | J151: -0.1074
C154: CLIENTS
C156: Total numbers of employees reported (jobs created) | D156: 763 | F156: 756 | H156: 751 | J156: 745

Sheet Annual input sheet
B4: SOCIAL PERFORMANCE MANAGEMENT: ANNUAL REPORT INPUT SHEET
B7: Indicate the Period | C7: Year 2021 | E7: Year 2020
C8: Current Year | E8: Previour Year
B10: OPERATIONS
B12: % of active borrowers:
B13: Female | C13: 0.7349 | E13: 0.7341
B14: Male | C14: 0.2651 | E14: 0.2659
B15: Rural | C15: 0.8717 | E15: 0.8657
B16: Urban | C16: 0.1283 | E16: 0.1343
B18: % of targeted minority borrowers | C18: =SUM(C19:C25) -> 0.5134 | E18: =SUM(E19:E25) -> 0.5392
B19: Small Farmers | C19: 0.1717 | E19: 0.1988
B20: Farmer | C20: 0.1335 | E20: 0.1339
B21: Fisherfolk | C21: 0.0047 | E21: 0.0064
B22: Indigenous People | C22: 0.0174 | E22: 0.019
B23: Displaced workers | C23: 0.1081 | E23: 0.1034
B24: Persons with Disability | C24: 0.0004 | E24: 0.0004
B25: Urban Poor | C25: 0.0776 | E25: 0.0773
B27: % of clients without access to formal financial services before joining ASKI | C27: n/a | E27: n/a | F27: *ASKI temporarily stop the Client Transformation Survey due to pandemic
B29: % of poor incoming / new clients (various poverty lines: <1.25$ a day, <2 $ a day, <5 $ a day)
B30: % of clients living under the 1.25$ a day | C30: 0.0327 | E30: 0.0409
B31: % of clients living under the 2.5$ a day | C31: 0.1762 | E31: 0.1991
B32: % of clients living under the 5$ a day | C32: 0.4936 | E32: 0.5159
B35: Average Loan Size per client (Exposure to ASKI loans)
B36: AKP | C36: 7520.58 | E36: 7611.25
B37: AMP | C37: 32729.25 | E37: 32176.65
B38: ILP | C38: 24949.38 | E38: 26795.57
B40: Client retention rate (borrowers only): Overall | C40: 0.82 | E40: 0.85
B42: Number of active borrowers as at beginning of period | C42: 103396 | E42: 105223
B43: Number of active borrowers as at end of period | C43: 100848 | E43: 103396
B44: Number of new borrowers during the period | C44: 19084 | E44: 3440
B47: AKP retention rate | C47: 0.8676 | E47: 0.8784
B48: AMP retention rate | C48: 0.7303 | E48: 0.9009
B49: ILP retention rate | C49: 0.8407 | E49: 0.8423
B51: Top 3 reasons for client exit | C51: Reason 1 | E51: Reason 1
C52: Some business owners stop borrowing capital for the recovery of their business due to pandemic | E52: Some business owners stop borrowing capital for the recovery of their business due to pandemic
C54: Reason 2 | E54: Reason 2
C55: I only need to borrow in a seasonal basis | E55: I only need to borrow in a seasonal basis
C57: Reason 3 | E57: Reason 3
C58: Have a enough capital for business | E58: Have a enough capital for business
B61: PEOPLE / EMPLOYEES
B63: % of staff complaints resolved | C63: 1 | E63: 1
B65: No. of staff complaints received | C65: 14 | E65: 23
B66: No. of staff complaints resolved | C66: 12 | E66: 20
B68: Top 3 sub-categories of staff complaints received | C68: Sub-category 1 | E68: Sub-category 1
C70: Last Pay and Clearance Processing | E70: Last Pay and Clearance Processing
C72: Sub-category 2 | E72: Sub-category 2
C74: Benefits | E74: Administrative Policies, Other Category
C76: Sub-category 3 | E76: Sub-category 3
C78: HR Policies, Administrative Policies and Other Category
B80: Staff retention rate | C80: 0.8886 | E80: 0.9356
B82: Number of employees as at beginning of period | C82: 781 | E82: 819
B83: Number of employees as at end of period | C83: 745 | E83: 781
B84: Number of new employees during the period | C84: 48 | E84: 14
B86: Staff Turnover Rate | C86: =SUM(C88:C89) -> 0.1549 | E86: =SUM(E88:E89) -> 0.1486
B88: Turnover Rate: Permanent Staff | C88: 0.1431 | E88: 0.0874
B89: Turnover Rate: Non-permanent Staff | C89: 0.0118 | E89: 0.0612
B91: Top 3 reasons for staff exits | C91: Reason 1 | E91: Reason 1
C92: Other Job Opportunity | E92: Other Job Opportunity
C94: Reason 2 | E94: Reason 2
C95: Family Matters | E95: End of Contract
C97: Reason 3 | E97: Reason 3
C98: Transfer to Other BU | E98: Family and Personal Matters
B100: Average number of days of staff training | C100: 1 | E100: 2
B103: PROCESS
B105: % of clients complaints resolved (Komento Mo – text) | C105: 1 | E105: 1
B107: No. of client complaints received | C107: 44 | E107: 41
B108: No. of client complaints resolved | C108: 43 | E108: 34
B110: Top 3 sub-categories of client complaints received | C110: Sub-category 1 | E110: Sub-category 1
C111: Loan release | E111: Loan release
C112: Insurance - Life
C114: Sub-category 2 | E114: Sub-category 2
C115: Staff attitude & Behaviour | E115: Insurance - Life
C117: Sub-category 3 | E117: Sub-category 3
C118: Other Category | E118: Capital Build-Up
B121: Top 3 Branches with highest complaints | C121: Branch 1 | E121: Branch 1
C122: PANIQUI | E122: MEXICO
C123: San Mateo, Cabatuan, Plaridel, Cabanatuan
C125: Branch 2 | E125: Branch 2
C126: ALICIA | E126: CABANATUAN
C127: Arayat, Baliuag, Echague, Concepcion, San Miguel, Tuguegarao South, Sta. Maria, Gen. Tinio, Tumauini, Porac, Maria, Lasam, Allacapan, Gabaldon, Guimba, Mangaldan | E127: Porac, Santiago, Talavera
C129: Branch 3 | E129: Branch 3
C130: n/a | E130: BAGGAO
E131: Abulug, Alcala, Cabiao, Cauayan, Concepcion, Echague, General Tinio, Maria, Piat, Sta. Rosa, Tarlac, San Mateo, San Rafael, Solano, Angeles, Palayan, Gattaran, Cabatuan, Calasiao
B133: Top 3 areas with highest complaints | C133: Area 1 | E133: Area 1
C134: Isabela Central | E134: Nueva Ecija
C136: Area 2 | E136: Area 2
C137: Bulacan | E137: Pampanga
C139: Area 3 | E139: Area 3
C140: Pampanga, Nueva Ecija North | E140: Cagayan
B142: SP audit report | C142: n/a | E142: n/a | F142: Due to limited number of ASKI Auditors, the SP audit is temporarily stop since 2020
B144: Branch Compliance Rating | C144: ASKI stop giving Audit Ratings among branches due to pandemic but the Internal Audit continuously conducted financial and operation audit remotely. The giving of Audit Ratings started this January 2022 | E144: ASKI stop giving Audit Ratings among branches due to pandemic but the Internal Audit continuously conducted financial and operation audit remotely. The giving of Audit Ratings started this January 2022
B146: Client Protection Principle; Adherence Rating; Ranking importance of CPP | C146: Yes | E146: Yes
B148: Range of financial and non-financial services offered | C148: financial - 9 non-financial - 12 | E148: financial - 9 non-financial - 12
B150: Are client exit interviews conducted? | C150: No | E150: No
B152: Are products, services modified as a result of client surveys, focus groups etc? | C152: Yes | E152: Yes
B154: Do you have a standard measure of client satisfaction? | C154: Yes | E154: Yes
B156: Does the organisation report to: MIX Market, Smart Campaign, MFT etc | C156: No | E156: No
B158: Has a rating been done of your organisation in the last 2 years? | C158: Yes | E158: Yes
B160: Do you have mechanisms in place to handle client complaints? | C160: Yes | E160: Yes
B164: FINANCE
B166: Effective Interest Rate (EIR) for most prolific (largest portfolio) group loan | C166: 0.6495 | E166: 0.6495
B168: Average EIR in country for group loan | C168: Not Applicable | E168: Not Applicable
B170: Return on Assets | C170: -0.1097 | E170: -0.0198 | F170: Negative ROA was due decrease in revenue because of hard lockdowns implemented during the height of Covid-19 our field officers were unable to collect payments of clients. Most of the clients were force to closed their business due to limitations and restrictions implemented by the government.
B173: CLIENTS
B175: % of clients reporting an increased net promoter (client satisfaction) score | C175: n/a | E175: n/a
B177: Top 3 Branches with highest NPS Scores | C177: Branch 1 | E177: Branch 1
C180: Branch 2 | E180: Branch 2
C183: Branch 3 | E183: Branch 3
B186: Top 3 feedback received | C186: Reason 1 | E186: Reason 1
C187: n/a | E187: n/a
C189: Reason 2 | E189: Reason 2
C190: n/a | E190: n/a
C192: Reason 3 | E192: Reason 3
C193: n/a | E193: n/a
B195: Total numbers of employees reported (jobs created) | C195: No Data | E195: No Data
B197: % of clients (tracked) who present increase, status quo or decrease in their poverty score | C197: 0 | E197: 0
B198: % of clients who have increased poverty scores | C198: 0.647 | E198: 0.5175
B199: % of clients who have poverty scores as status quo | C199: 0.2631 | E199: 0.3686
B200: % of clients who have decreased poverty scores | C200: 0.0899 | E200: 0.1139
B202: % of clients who have increased their saving in the last 12 months | C202: Not yet available | E202: Not yet available
B204: % of clients who used their loans for various purposes
C205: Not yet available | E205: Not yet available
B212: % of clients who used their business loans for various purposes | C212: Unable to quantify due to the limitations of pandemic | E212: Unable to quantify due to the limitations of pandemic
B218: % of clients who have other sources of Income | C218: Client Rapid Assessment Survey | E218: 0.6307
B225: % of Clients with who have other financial contributors in that household | C225: Unable to quantify due to the limitations of pandemic | E225: Unable to quantify due to the limitations of pandemic | F225: ASKI is currently shifting to digital transaction and because of this we are not able to quantify data.
B227: % increase in Business Sales after joining (client level data) | C227: Will come from cashflow and laf (not yet finalized) | E227: Will come from cashflow and laf (not yet finalized)
B229: % of clients with increase in Business Sales | C229: Will come from cashflow and laf (not yet finalized) | E229: Will come from cashflow and laf (not yet finalized)
B231: % of clients with increase in net income from business | C231: Will come from cashflow and laf (not yet finalized) | E231: Will come from cashflow and laf (not yet finalized)
B233: % increase in agriculture yield | C233: Unable to quantify due to the limitations of pandemic | E233: Unable to quantify due to the limitations of pandemic
B235: % of clients with increased yield | C235: Unable to quantify due to the limitations of pandemic | E235: Unable to quantify due to the limitations of pandemic
B237: % of clients who report having experienced a serious medical condition/illness in the last 6 months within their household | C237: Unable to quantify due to the limitations of pandemic | E237: Unable to quantify due to the limitations of pandemic
B239: % of clients who had access to a qualified health practitioner or health facility for treatment for this illness/condition. | C239: Unable to quantify due to the limitations of pandemic | E239: Unable to quantify due to the limitations of pandemic
B241: % of clients who have access to a constructed toilet: Types of Toilet | C241: Unable to quantify due to the limitations of pandemic | E241: Unable to quantify due to the limitations of pandemic
B243: % of clients unable to provide adequate food for their family for the last 6 months | C243: Unable to quantify due to the limitations of pandemic | E243: Unable to quantify due to the limitations of pandemic
B245: % of clients who have had to sell assets to provide for their family in the last 6 months? | C245: Unable to quantify due to the limitations of pandemic | E245: Unable to quantify due to the limitations of pandemic
B247: % of Clients with access to their own drinking water | C247: Unable to quantify due to the limitations of pandemic | E247: Unable to quantify due to the limitations of pandemic
B249: % of clients who have school age (5-15) children who attend school regularly | C249: Unable to quantify due to the limitations of pandemic | E249: Unable to quantify due to the limitations of pandemic
B251: % of clients who feel able to participate in key community decisions | C251: Unable to quantify due to the limitations of pandemic | E251: Unable to quantify due to the limitations of pandemic
B253: % of clients who participate in key household spending decisions | C253: Unable to quantify due to the limitations of pandemic | E253: Unable to quantify due to the limitations of pandemic
B255: % of clients whose children have the possibility of attending college or university | C255: Unable to quantify due to the limitations of pandemic | E255: Unable to quantify due to the limitations of pandemic
B257: % of Clients with who --- number of household members | C257: Unable to quantify due to the limitations of pandemic | E257: Unable to quantify due to the limitations of pandemic
B262: Number of clients who attended the environment-related orientation programme | C262: No Training Conducted | E262: No Training Conducted | F262: ASKI were unable to conduct environmental training to clients due to restrictions of Covid-19
B264: % of clients who feel greater spiritual support after joining the programme? | C264: No Training Conducted | E264: 0.00216
B266: Number of clients who attended spiritual transformation activities | C266: Transformation Activities started this 2022 | E266: 246

Sheet Annual SPM Dashboard
E2: ANNUAL SPM DASHBOARD - FOR THE BOARD
H4: OPERATIONS
B6: % of active borrowers
B16: Benchmarks: Female (75%); Rural (85%)
B18: % of targeted minority borrowers | E18: ='Annual input sheet'!C18 -> 0.5134
I25: Poverty Line considered for this graph: 2.5$ a day
B28: Benchmarks: 20%
C31: Benchmarks: 2% | F31: CTS
B33: Client Borrowing Capacity (Exposure to ASKI loans)
B34: Average Loan Size of Clients
B35: Benchmarks | C35: AMP: Php 30,000 AKP: Php 5,000 ILP: Php15,000 | E35: AMP: Php 30,940.95 AKP: Php 3,966.95 ILP: Php 13,902.69
E38: PROCESS
B40: % of clients complaints resolved (Komento Mo – text) | G40: Top 3 sub-categories of complaints received
C41: ='Annual input sheet'!C105 -> 1
C42: Benchmark: 85% | G42: 1 | H42: ='Annual input sheet'!C111 -> Loan release
B43: Complaints Received | D43: ='Annual input sheet'!C107 -> 44 | G43: 2 | H43: ='Annual input sheet'!C115 -> Staff attitude & Behaviour
B44: Complaints Resolved | D44: ='Annual input sheet'!C108 -> 43 | G44: 3 | H44: ='Annual input sheet'!C118 -> Other Category
B46: Top 3 Branches with highest complaints | G46: Top 3 areas with highest complaints
B48: 1 | C48: ='Annual input sheet'!C122 -> PANIQUI | G48: 1 | H48: ='Annual input sheet'!C134 -> Isabela Central
B49: 2 | C49: ='Annual input sheet'!C126 -> ALICIA | G49: 2 | H49: ='Annual input sheet'!C137 -> Bulacan
B50: 3 | C50: ='Annual input sheet'!C130 -> n/a | G50: 3 | H50: ='Annual input sheet'!C140 -> Pampanga, Nueva Ecija North
B53: SP audit report | E53: ='Annual input sheet'!C142 -> n/a | H53: Adherence to client protection | L53: ='Annual input sheet'!C146 -> Yes
B55: Client Retention Rate | G55: Client Satisfaction Score (Net Promoter Score)
B57: ='Annual input sheet'!C40 -> 0.82 | D57: =('Annual input sheet'!C40-'Annual input sheet'!E40) -> -0.03
B59: Benchmark: 85%
B60: Top 3 reasons for client drop out: | J60: ='Annual input sheet'!C175 -> n/a
B61: 1 | C61: ='Annual input sheet'!C52 -> Some business owners stop borrowing capital for the recovery of their business due to pandemic
B62: 2 | C62: ='Annual input sheet'!C55 -> I only need to borrow in a seasonal basis | G62: Benchmark: 85%
B63: 3 | C63: ='Annual input sheet'!C58 -> Have a enough capital for business | H63: Top 3 feedback received
H64: 1 | I64: ='Annual input sheet'!C187 -> n/a
B65: Product-wise Retention Rates | H65: 2 | I65: ='Annual input sheet'!C190 -> n/a
H66: 3 | I66: ='Annual input sheet'!C193 -> n/a
C67: Current | D67: Previous
B68: AKP | C68: ='Annual input sheet'!C47 -> 0.8676 | D68: ='Annual input sheet'!E47 -> 0.8784 | H68: Top 3 branches with highest NPS Score
H69: 1 | I69: ='Annual input sheet'!C179 -> 0
B70: AMP | C70: ='Annual input sheet'!C48 -> 0.7303 | D70: ='Annual input sheet'!E48 -> 0.9009 | H70: 2 | I70: ='Annual input sheet'!C182 -> 0
H71: 3 | I71: ='Annual input sheet'!C185 -> 0
B72: ILP | C72: ='Annual input sheet'!C49 -> 0.8407 | D72: ='Annual input sheet'!E49 -> 0.8423
E75: FINANCE
B77: Effective Interest Rate on | E77: Industry Average for group loans | J77: Return on Assets
A78: AKP - Alalay sa Kabuhayan Program (Group Loans) | E78: APR, by loan purpose
B81: ='Annual input sheet'!C166 -> 0.6495 | E81: ='Annual input sheet'!C168 -> Not Applicable | J81: ='Annual input sheet'!C170 -> -0.1097 | K81: p.a.
B83: Benchmark: 70% | E83: Source: goo.gl/BdtiJ4 | J83: Benchmark: 3 to 4 % p.a.
E85: EMPLOYEES
B87: Staff Retention Rate | H87: % of staff complaints resolved (Komento Mo – text)
C88: ='Annual input sheet'!C80 -> 0.8886 | I88: ='Annual input sheet'!C63 -> 1
C89: Benchmark: 85% | I89: Benchmark: 85%
H90: Complaints Received | J90: ='Annual input sheet'!C65 -> 14
B91: Staff Turnover Rate | E91: Top 3 reasons for staff exits: | H91: Complaints Resolved | J91: ='Annual input sheet'!C66 -> 12
E92: 1 | F92: ='Annual input sheet'!C92 -> Other Job Opportunity
C93: ='Annual input sheet'!C86 -> 0.1549 | E93: 2 | F93: ='Annual input sheet'!C95 -> Family Matters | H93: Top 3 sub-categories of complaints received
B94: Permanent Staff | D94: ='Annual input sheet'!C88 -> 0.1431 | E94: 3 | F94: ='Annual input sheet'!C98 -> Transfer to Other BU
B95: Non-Permanent Staff | D95: ='Annual input sheet'!C89 -> 0.0118 | H95: 1 | I95: ='Annual input sheet'!C71 -> 0
H96: 2 | I96: ='Annual input sheet'!C75 -> 0
H97: 3 | I97: ='Annual input sheet'!C79 -> 0
H100: Average Number of Days for Staff Training
I101: ='Annual input sheet'!C100 -> 1 | J101: days
I102: Benchmark: 0.30
